fUST/lending_fUST_20251119
["ID","MTS","AMOUNT","RATE_DAILY","PERIOD"]
[394353459,1763483434903,-2939.27040329,0.00017989,2]
[394353460,1763483434912,-2939.27040329,0.00017989,2]
[394353461,1763483434922,-2939.27040329,0.00017989,2]
[394353462,1763483434932,-2939.27040329,0.00017989,2]
[394353463,1763483434941,-2939.27040329,0.00017989,2]
[394353464,1763483434950,-2939.27040329,0.00017989,2]
[394353465,1763483434960,-2939.27040329,0.00017989,2]
[394353466,1763483434969,-2939.27040329,0.00017989,2]
[394353467,1763483434979,-2939.27040329,0.00017989,2]
[394353468,1763483434987,-2939.27040329,0.00017989,2]
[394353469,1763483434997,-2939.27040329,0.00017989,2]
[394353470,1763483435006,-2939.27040329,0.00017989,2]
[394353471,1763483435015,-2939.27040329,0.00017989,2]
[394353472,1763483435024,-2939.27040329,0.00017989,2]
[394353473,1763483435033,-2939.27040329,0.00017989,2]
[394353474,1763483435043,-2939.27040329,0.00017989,2]
[394353475,1763483435053,-2939.27040329,0.00017989,2]
[394353476,1763483435062,-2939.27040329,0.00017989,2]
[394353477,1763483435072,-2939.27040329,0.00017989,2]
[394353478,1763483435082,-2939.27040329,0.00017989,2]
[394353479,1763483435091,-2939.27040329,0.00017989,2]
[394353480,1763483435101,-2939.27040329,0.00017989,2]
[394353481,1763483435111,-500.0,0.00017989,2]
[394353482,1763483435120,-50000.0,0.00017989,2]
[394353483,1763483435130,-19771.72619206,0.00018,2]
[394353484,1763483435139,-9685.59284518,0.00018,2]
[394353485,1763483435150,-27795.32991772,0.00018,2]
[394353486,1763483435159,-500.0,0.00018263,2]
[394353487,1763483435168,-300.0,0.00018349,2]
[394353488,1763483435178,-300.0,0.00018349,2]
[394353489,1763483435188,-300.0,0.00018349,2]
[394353490,1763483435198,-300.0,0.00018349,2]
[394353491,1763483435208,-300.0,0.00018349,2]
[394353492,1763483435217,-300.0,0.00018349,2]
[394353493,1763483435227,-300.0,0.00018349,2]
[394353494,1763483435236,-300.0,0.00018349,2]
[394353495,1763483435246,-300.0,0.00018349,2]
[394353496,1763483435256,-300.0,0.00018349,2]
[394353497,1763483435265,-300.0,0.00018349,2]
[394353498,1763483435276,-300.0,0.00018349,2]
[394353499,1763483435285,-300.0,0.00018349,2]
[394353500,1763483435295,-300.0,0.00018349,2]
[394353501,1763483435304,-300.0,0.00018349,2]
[394353502,1763483435314,-600.0,0.00018349,2]
[394353503,1763483435325,-1000.0,0.00018521,2]
[394353504,1763483435334,-1000.0,0.00018521,2]
[394353505,1763483435343,-1000.0,0.00018521,2]
[394353506,1763483435353,-1000.0,0.00018521,2]
[394353507,1763483435362,-1000.0,0.00018521,2]
[394353508,1763483435383,-1000.0,0.00018521,2]
[394353509,1763483435394,-1000.0,0.00018521,2]
[394353510,1763483435404,-1000.0,0.00018521,2]
[394353511,1763483435414,-1000.0,0.00018521,2]
[394353512,1763483435423,-500.0,0.00018537,2]
[394353513,1763483435433,-500.0,0.00018811,2]
[394353514,1763483435442,-500.0,0.00018973,2]
[394353515,1763483435451,-511.82063666,0.00018973,2]
[394353516,1763483435461,-502.92310122,0.00018973,2]
[394353517,1763483435471,-500.0,0.00018973,2]
[394353518,1763483435481,-500.5084177,0.00018973,2]
[394353519,1763483435491,-500.31208473,0.00018973,2]
[394353520,1763483435500,-500.0,0.00018973,2]
[394353521,1763483435511,-307.44759999,0.00018973,2]
[394353522,1763483435521,-500.0,0.00018973,2]
[394353523,1763483435532,-100000.0,0.0001899,2]
[394353524,1763483435543,-195.62038484,0.00019068,2]
[394353525,1763483435553,-873.3008297,0.00019068,2]
[394353526,1763483435563,-1500.0,0.00019068,2]
[394353527,1763483435573,-1500.0,0.00019068,2]
[394353528,1763483435585,-1500.0,0.00019068,2]
[394353529,1763483435595,-1500.0,0.00019068,2]
[394353530,1763483435608,-1500.0,0.00019068,2]
[394353531,1763483435618,-500.0,0.00019085,2]
[394353532,1763483435627,-150.0,0.00019178,2]
[394353533,1763483435637,-301.79765954,0.00019315,2]
[394353534,1763483435647,-500.0,0.00019359,2]
[394353535,1763483435657,-1000.0,0.00019521,2]
[394353536,1763483435668,-1000.0,0.00019521,2]
[394353537,1763483435678,-420.0,0.0001961,2]
[394353538,1763483435688,-2000.0,0.00019616,2]
[394353539,1763483435698,-2000.0,0.00019616,2]
[394353540,1763483435708,-2021.17956697,0.00019616,2]
[394353541,1763483435717,-563.81562093,0.00019616,2]
[394353542,1763483435727,-2000.0,0.00019616,2]
[394353543,1763483435736,-515.21,0.00019618,3]
[394353544,1763483435746,-500.0,0.00019633,2]
[394353545,1763483435758,-1680.0,0.00019706,2]
[394353546,1763483435768,-500.0,0.00019907,2]
[394353547,1763483435778,-257.6,0.0001998,3]
[394353548,1763483435789,-772.84,0.0001998,3]
[394353549,1763483435798,-6904.72511,0.0002,2]
[394353550,1763483435808,-390.66999998,0.0002,2]
[394353551,1763483435819,-500.96105219,0.00020068,2]
[394353552,1763483435833,-1024.32488412,0.00020068,2]
[394353553,1763483435843,-2500.0,0.00020164,2]
[394353554,1763483435854,-2500.0,0.00020164,2]
[394353555,1763483435865,-2500.0,0.00020164,2]
[394353556,1763483435875,-500.0,0.00020181,2]
[394353557,1763483435886,-720.0,0.00020184,2]
[394353558,1763483435897,-500.0,0.00020455,2]
[394353559,1763483435907,-168.04588075,0.00020497,2]
[394353560,1763483435918,-150.0,0.00020584,2]
[394353561,1763483435928,-3000.0,0.00020712,2]
[394353562,1763483435938,-1138.25727873,0.00020712,2]
[394353563,1763483435948,-3000.0,0.00020712,2]
[394353564,1763483436047,-500.0,0.00020729,2]
[394353565,1763483436058,-3165.68451829,0.00020859,2]
[394353566,1763483436067,-1200.0,0.00020959,2]
[394353567,1763483436081,-2060.83,0.00020961,3]
[394353568,1763483436091,-1030.41,0.00020961,3]
[394353569,1763483436100,-151.0,0.0002097,7]
[394353570,1763483436109,-235.545262,0.0002097,7]
[394353571,1763483436119,-1058.016605,0.0002097,7]
[394353572,1763483436129,-1058.016605,0.0002097,7]
[394353573,1763483436138,-1058.016605,0.0002097,7]
[394353574,1763483436149,-1058.016605,0.0002097,7]
[394353575,1763483436159,-1058.016605,0.0002097,7]
[394353576,1763483436168,-1058.016605,0.0002097,7]
[394353577,1763483436178,-1058.016605,0.0002097,7]
[394353578,1763483436189,-1058.016605,0.0002097,7]
[394353579,1763483436198,-1058.016605,0.0002097,7]
[394353580,1763483436208,-1058.016605,0.0002097,7]
[394353581,1763483436217,-1058.016605,0.0002097,7]
[394353582,1763483436227,-1058.016605,0.0002097,7]
[394353583,1763483436237,-151.0,0.00020972,7]
[394353584,1763483436247,-154.17873,0.00020972,7]
[394353585,1763483436256,-585.406978,0.00020972,7]
[394353586,1763483436266,-585.406978,0.00020972,7]
[394353587,1763483436276,-585.406978,0.00020972,7]
[394353588,1763483436286,-585.406978,0.00020972,7]
[394353589,1763483436296,-585.406978,0.00020972,7]
[394353590,1763483436305,-585.406978,0.00020972,7]
[394353591,1763483436315,-585.406978,0.00020972,7]
[394353592,1763483436327,-585.406978,0.00020972,7]
[394353593,1763483436337,-585.406978,0.00020972,7]
[394353594,1763483436346,-585.406978,0.00020972,7]
[394353595,1763483436357,-585.406978,0.00020972,7]
[394353596,1763483436367,-585.406978,0.00020972,7]
[394353597,1763483436377,-151.0,0.00020972,7]
[394353598,1763483436387,-1058.016605,0.00020972,7]
[394353599,1763483436397,-1058.016605,0.00020972,7]
[394353600,1763483436407,-1058.016605,0.00020972,7]
[394353601,1763483436416,-1058.016605,0.00020972,7]
[394353602,1763483436425,-500.0,0.00020973,2]
[394353603,1763483436436,-500.0,0.00020973,2]
[394353604,1763483436446,-500.0,0.00020973,2]
[394353605,1763483436456,-533.06601794,0.00020973,2]
[394353606,1763483436466,-647.60557133,0.00020973,2]
[394353607,1763483436476,-215.97941011,0.00020973,2]
[394353608,1763483436486,-504.71434881,0.00020973,2]
[394353609,1763483436496,-500.0,0.00020973,2]
[394353610,1763483436509,-500.0,0.00020973,2]
[394353611,1763483436521,-500.0,0.00020973,2]
[394353612,1763483436530,-500.0,0.00020973,2]
[394353613,1763483436540,-500.0,0.00020973,2]
[394353614,1763483436551,-500.0,0.00020973,2]
[394353615,1763483436561,-500.0,0.00020973,2]
[394353616,1763483436571,-500.0,0.00020973,2]
[394353617,1763483436585,-500.0,0.00020973,2]
[394353618,1763483436594,-500.0,0.00020973,2]
[394353619,1763483436604,-500.0,0.00020973,2]
[394353620,1763483436613,-500.0,0.00020973,2]
[394353621,1763483436623,-500.0,0.00020973,2]
[394353622,1763483436633,-500.0,0.00020973,2]
[394353623,1763483436642,-500.0,0.00020973,2]
[394353624,1763483436652,-503.1055677,0.00020973,2]
[394353625,1763483436661,-344.69421403,0.00020973,2]
[394353626,1763483436673,-500.0,0.00020973,2]
[394353627,1763483436682,-500.0,0.00020973,2]
[394353628,1763483436692,-500.0,0.00020973,2]
[394353629,1763483436702,-500.0,0.00020973,2]
[394353630,1763483436711,-500.0,0.00020973,2]
[394353631,1763483436721,-500.0,0.00020973,2]
[394353632,1763483436730,-500.0,0.00020973,2]
[394353633,1763483436739,-500.0,0.00020973,2]
[394353634,1763483436749,-500.0,0.00020973,2]
[394353635,1763483436760,-162.83966597,0.00020973,2]
[394353636,1763483436769,-500.0,0.00020973,2]
[394353637,1763483436779,-500.0,0.00020973,2]
[394353638,1763483436789,-500.0,0.00020973,2]
[394353639,1763483436798,-456.80411814,0.00020973,2]
[394353640,1763483436808,-470.46085505,0.00020973,2]
[394353641,1763483436820,-500.0,0.00020973,2]
[394353642,1763483436834,-500.0,0.00020973,2]
[394353643,1763483436843,-500.0,0.00020973,2]
[394353644,1763483436853,-151.0,0.00020976,2]
[394353645,1763483436863,-155.69944327,0.00020976,2]
[394353646,1763483436873,-1030.42,0.00020988,3]
[394353647,1763483436882,-790.7,0.00020989,2]
[394353648,1763483436892,-790.7,0.00020989,2]
[394353649,1763483436901,-790.7,0.00020989,2]
[394353650,1763483436911,-790.7,0.00020989,2]
[394353651,1763483436920,-790.7,0.00020989,2]
[394353652,1763483436930,-585.406978,0.0002099,7]
[394353653,1763483436939,-585.406978,0.0002099,7]
[394353654,1763483436948,-585.406978,0.0002099,7]
[394353655,1763483436958,-585.406978,0.0002099,7]
[394353656,1763483436967,-151.0,0.0002099,7]
[394353657,1763483436977,-160.0,0.0002099,2]
[394353658,1763483436986,-500.0,0.00021003,2]
[394353659,1763483436995,-790.7,0.00021034,2]
[394353660,1763483437004,-450.50637907,0.000212,2]
[394353661,1763483437013,-3500.0,0.0002126,2]
[394353662,1763483437023,-1418.4528737,0.0002126,2]
[394353663,1763483437032,-790.7,0.00021268,2]
[394353664,1763483437042,-790.7,0.00021268,2]
[394353665,1763483437051,-790.7,0.00021268,2]
[394353666,1763483437061,-790.7,0.00021268,2]
[394353667,1763483437071,-200.0,0.00021268,2]
[394353668,1763483437083,-98095.8332644,0.00021269,2]
[394353669,1763483437092,-151.0,0.00021269,7]
[394353670,1763483437102,-151.0,0.00021269,7]
[394353671,1763483437111,-151.0,0.00021269,7]
[394353672,1763483437121,-585.406978,0.00021269,7]
[394353673,1763483437130,-585.406978,0.00021269,7]
[394353674,1763483437139,-585.406978,0.00021269,7]
[394353675,1763483437148,-585.406981,0.00021269,7]
[394353676,1763483437158,-151.0,0.00021269,7]
[394353677,1763483437168,-1058.016605,0.00021269,7]
[394353678,1763483437177,-1058.016605,0.00021269,7]
[394353679,1763483437186,-1058.016605,0.00021269,7]
[394353680,1763483437195,-1058.016605,0.00021269,7]
[394353681,1763483437204,-790.7,0.00021271,2]
[394353682,1763483437213,-500.0,0.00021273,2]
[394353683,1763483437223,-500.0,0.00021273,2]
[394353684,1763483437233,-302.46146869,0.00021273,2]
[394353685,1763483437242,-500.0,0.00021273,2]
[394353686,1763483437251,-500.0,0.00021273,2]
[394353687,1763483437260,-500.0,0.00021273,2]
[394353688,1763483437269,-500.0,0.00021273,2]
[394353689,1763483437278,-179.66978308,0.00021273,2]
[394353690,1763483437288,-500.0,0.00021273,2]
[394353691,1763483437297,-500.0,0.00021273,2]
[394353692,1763483437306,-159.36727858,0.00021273,2]
[394353693,1763483437315,-500.0,0.00021273,2]
[394353694,1763483437325,-500.71671824,0.00021273,2]
[394353695,1763483437335,-508.44679136,0.00021273,2]
[394353696,1763483437344,-500.0,0.00021273,2]
[394353697,1763483437354,-335.39670131,0.00021277,2]
[394353698,1763483437364,-790.7,0.00021296,2]
[394353699,1763483437373,-790.7,0.00021296,2]
[394353700,1763483437383,-790.7,0.00021296,2]
[394353701,1763483437392,-790.7,0.00021296,2]
[394353702,1763483437402,-790.7,0.00021296,2]
[394353703,1763483437412,-790.7,0.00021296,2]
[394353704,1763483437421,-790.7,0.00021296,2]
[394353705,1763483437431,-790.7,0.00021296,2]
[394353706,1763483437440,-790.7,0.00021296,2]
[394353707,1763483437449,-790.7,0.00021296,2]
[394353708,1763483437458,-790.7,0.00021296,2]
[394353709,1763483437467,-790.7,0.00021296,2]
[394353710,1763483437476,-790.90921624,0.00021296,2]
[394353711,1763483437486,-151.0,0.00021297,7]
[394353712,1763483437496,-213.518786,0.00021297,7]
[394353713,1763483437505,-151.0,0.00021297,7]
[394353714,1763483437515,-151.0,0.00021297,7]
[394353715,1763483437526,-151.0,0.00021297,7]
[394353716,1763483437536,-151.0,0.00021297,7]
[394353717,1763483437545,-151.0,0.00021297,7]
[394353718,1763483437555,-151.0,0.00021297,7]
[394353719,1763483437565,-151.0,0.00021297,7]
[394353720,1763483437576,-151.0,0.00021297,7]
[394353721,1763483437586,-151.0,0.00021297,7]
[394353722,1763483437595,-151.0,0.00021297,7]
[394353723,1763483437605,-151.0,0.00021297,7]
[394353724,1763483437615,-151.0,0.00021297,7]
[394353725,1763483437624,-151.0,0.00021297,7]
[394353726,1763483437634,-269.436558,0.00021297,7]
[394353727,1763483437643,-151.0,0.00021298,7]
[394353728,1763483437653,-151.0,0.00021298,7]
[394353729,1763483437663,-151.0,0.00021298,7]
[394353730,1763483437674,-205.408793,0.00021298,2]
[394353731,1763483437684,-500.0,0.00021315,2]
[394353732,1763483437693,-500.0,0.00021315,2]
[394353733,1763483437703,-500.0,0.00021315,2]
[394353734,1763483437713,-2265.04070316,0.00021316,2]
[394353735,1763483437722,-515.2,0.0002135,3]
[394353736,1763483437732,-162.30300803,0.00021373,2]
[394353737,1763483437742,-500.58691999,0.00021373,2]
[394353738,1763483437752,-500.0,0.00021373,2]
[394353739,1763483437762,-503.81513739,0.00021373,2]
[394353740,1763483437771,-500.0,0.00021373,2]
[394353741,1763483437781,-502.24962682,0.00021373,2]
[394353742,1763483437791,-500.0,0.00021373,2]
[394353743,1763483437801,-587.0,0.00021397,2]
[394353744,1763483437810,-484.54317109,0.00021521,2]
[394353745,1763483437820,-1000.0,0.00021521,2]
[394353746,1763483437831,-1000.0,0.00021521,2]
[394353747,1763483437840,-1000.0,0.00021521,2]
[394353748,1763483437850,-917.17834268,0.00021521,2]
[394353749,1763483437934,-1020.65947668,0.00021521,2]
[394353750,1763483437955,-1000.0,0.00021521,2]
[394353751,1763483437964,-1000.0,0.00021521,2]
[394353752,1763483437975,-1000.0,0.00021521,2]
[394353753,1763483437984,-1000.0,0.00021521,2]
[394353754,1763483437993,-508.45259022,0.00021521,2]
[394353755,1763483438003,-494.65048411,0.00021521,2]
[394353756,1763483438013,-1000.0,0.00021521,2]
[394353757,1763483438023,-1000.0,0.00021521,2]
[394353758,1763483438033,-1000.0,0.00021521,2]
[394353759,1763483438043,-1000.0,0.00021521,2]
[394353760,1763483438054,-1000.0,0.00021521,2]
[394353761,1763483438064,-522.92159442,0.00021521,2]
[394353762,1763483438074,-1000.0,0.00021521,2]
[394353763,1763483438086,-1000.0,0.00021521,2]
[394353764,1763483438096,-309.21965085,0.00021521,2]
[394353765,1763483438106,-1000.0,0.00021521,2]
[394353766,1763483438116,-1000.0,0.00021521,2]
[394353767,1763483438126,-1000.0,0.00021521,2]
[394353768,1763483438135,-500.84319788,0.00021521,2]
[394353769,1763483438145,-1000.0,0.00021521,2]
[394353770,1763483438155,-260.0,0.00021538,2]
[394353771,1763483438166,-305.76732847,0.00021576,2]
[394353772,1763483438176,-2351.0,0.00021608,2]
[394353773,1763483438186,-840.0385779,0.00021698,2]
[394353774,1763483438196,-424.7439308,0.00021698,2]
[394353775,1763483438207,-4000.0,0.00021808,2]
[394353776,1763483438217,-1010.34831849,0.00021821,2]
[394353777,1763483438227,-1000.0,0.00021821,2]
[394353778,1763483438237,-1000.0,0.00021821,2]
[394353779,1763483438247,-1006.37112499,0.00021821,2]
[394353780,1763483438258,-1000.0,0.00021821,2]
[394353781,1763483438269,-1000.0,0.00021821,2]
[394353782,1763483438280,-1000.0,0.00021821,2]
[394353783,1763483438290,-151.0,0.00021821,7]
[394353784,1763483438300,-151.0,0.00021821,7]
[394353785,1763483438310,-151.0,0.00021821,7]
[394353786,1763483438321,-151.0,0.00021821,7]
[394353787,1763483438332,-500.0,0.00021907,2]
[394353788,1763483438342,-500.0,0.00021907,2]
[394353789,1763483438352,-500.0,0.00021907,2]
[394353790,1763483438361,-501.98032404,0.00021907,2]
[394353791,1763483438371,-1000.0,0.00021907,2]
[394353792,1763483438380,-1000.0,0.00021907,2]
[394353793,1763483438390,-1000.0,0.00021907,2]
[394353794,1763483438400,-1000.0,0.00021907,2]
[394353795,1763483438409,-1000.0,0.00021907,2]
[394353796,1763483438419,-615.58028972,0.00021907,2]
[394353797,1763483438429,-297.695328,0.00021918,7]
[394353798,1763483438438,-297.695328,0.00021918,7]
[394353799,1763483438449,-297.695328,0.00021918,7]
[394353800,1763483438458,-297.695328,0.00021918,7]
[394353801,1763483438469,-297.695328,0.00021918,7]
[394353802,1763483438479,-297.695328,0.00021918,7]
[394353803,1763483438489,-297.695328,0.00021918,7]
[394353804,1763483438499,-297.695328,0.00021918,7]
[394353805,1763483438511,-297.695328,0.00021918,7]
[394353806,1763483438521,-297.695328,0.00021918,7]
[394353807,1763483438531,-297.695328,0.00021918,7]
[394353808,1763483438540,-297.695328,0.00021918,7]
[394353809,1763483438551,-297.695328,0.00021918,7]
[394353810,1763483438561,-297.695328,0.00021918,7]
[394353811,1763483438571,-297.695328,0.00021918,7]
[394353812,1763483438581,-297.695328,0.00021918,7]
[394353813,1763483438591,-297.695328,0.00021918,7]
[394353815,1763483438601,-297.695328,0.00021918,7]
[394353817,1763483438611,-297.695328,0.00021918,7]
[394353819,1763483438621,-297.695336,0.00021918,7]
[394353821,1763483438631,-150.0,0.00021918,7]
[394353823,1763483438640,-1000.0,0.00021921,2]
[394353825,1763483438650,-1000.0,0.00021921,2]
[394353828,1763483438660,-1000.0,0.00021921,2]
[394353829,1763483438670,-500.0,0.00021973,2]
[394353831,1763483438680,-500.0,0.00021973,2]
[394353833,1763483438691,-500.0,0.00021973,2]
[394353834,1763483438701,-563.40642092,0.00021973,2]
[394353835,1763483438710,-500.0,0.00021973,2]
[394353836,1763483438720,-264.17501916,0.00021973,2]
[394353837,1763483438731,-500.0,0.00021973,2]
[394353838,1763483438741,-500.0,0.00021973,2]
[394353839,1763483438751,-500.0,0.00021973,2]
[394353840,1763483438760,-200.0,0.00022065,2]
[394353841,1763483438770,-277.8400414,0.00022066,2]
[394353842,1763483438780,-915.26931,0.00022066,2]
[394353843,1763483438790,-45498.87373779,0.00022066,2]
[394353844,1763483438811,-14964.83899241,0.00022066,2]
[394353845,1763483438821,-151.0,0.00022066,7]
[394353846,1763483438832,-151.0,0.00022066,7]
[394353847,1763483438842,-151.0,0.00022066,7]
[394353849,1763483438852,-220.730687,0.00022066,7]
[394353851,1763483438862,-1500.0,0.00022068,2]
[394353853,1763483438873,-1477.70222016,0.00022068,2]
[394353855,1763483438883,-1500.0,0.00022068,2]
[394353857,1763483438893,-1500.0,0.00022068,2]
[394353859,1763483438902,-1500.0,0.00022068,2]
[394353861,1763483438914,-927.09202475,0.00022068,2]
[394353863,1763483438925,-470.89202998,0.00022068,2]
[394353865,1763483438936,-865.81138896,0.00022068,2]
[394353867,1763483438945,-1500.0,0.00022068,2]
[394353868,1763483438956,-380.62610503,0.00022068,2]
[394353869,1763483438966,-1145.84322088,0.00022068,2]
[394353870,1763483438977,-666.54612706,0.00022068,2]
[394353871,1763483438987,-1500.0,0.00022068,2]
[394353872,1763483438997,-1500.0,0.00022068,2]
[394353873,1763483439008,-1512.19074474,0.00022068,2]
[394353874,1763483439018,-500.0,0.00022068,2]
[394353875,1763483439028,-503.53043094,0.00022068,2]
[394353876,1763483439039,-500.0,0.00022073,2]
[394353878,1763483439049,-500.93019027,0.00022073,2]
[394353879,1763483439059,-512.338289,0.00022073,2]
[394353880,1763483439068,-500.0,0.00022073,2]
[394353881,1763483439077,-360.0,0.00022086,2]
[394353882,1763483439088,-551.11425526,0.00022192,7]
[394353883,1763483439097,-864.0,0.00022202,20]
[394353884,1763483439107,-500.0,0.00022255,2]
[394353885,1763483439117,-368.1158774,0.00022279,4]
[394353886,1763483439127,-244.15293685,0.00022279,4]
[394353887,1763483439136,-3299.20713131,0.00022331,3]
[394353888,1763483439213,-1548.91,0.00022056,10]
[394353889,1763483439222,-822.45286869,0.00022331,3]
[394353890,1763483439232,-2060.82,0.00022331,3]
[394353891,1763483439242,-500.0,0.00022355,2]
[394353892,1763483439253,-500.0,0.00022355,2]
[394353893,1763483439263,-500.0,0.00022355,2]
[394353894,1763483439273,-500.0,0.00022355,2]
[394353895,1763483439283,-500.0,0.00022355,2]
[394353896,1763483439293,-500.0,0.00022355,2]
[394353897,1763483439304,-500.0,0.00022355,2]
[394353898,1763483439314,-500.0,0.00022355,2]
[394353899,1763483439323,-500.0,0.00022356,2]
[394353900,1763483439334,-4500.0,0.00022356,2]
[394353901,1763483439344,-871.0172078,0.00022357,2]
[394353902,1763483439354,-25657.4971725,0.00022357,2]
[394353903,1763483439364,-1500.0,0.00022368,2]
[394353904,1763483439374,-500.0,0.00022368,2]
[394353905,1763483439383,-516.34683712,0.00022373,2]
[394353906,1763483439393,-500.43010824,0.00022373,2]
[394353907,1763483439403,-300.0,0.00022373,2]
[394353908,1763483439414,-500.0,0.00022373,2]
[394353909,1763483439424,-500.0,0.00022373,2]
[394353910,1763483439434,-500.0,0.00022373,2]
[394353911,1763483439444,-217.91221958,0.00022373,2]
[394353912,1763483439454,-500.94071383,0.00022373,2]
[394353913,1763483439463,-500.49664526,0.00022373,2]
[394353914,1763483439473,-150.0,0.00022373,2]
[394353915,1763483439482,-1000.0,0.00022375,30]
[394353916,1763483439492,-201.89168135,0.00022399,2]
[394353917,1763483439501,-218.65,0.000224,14]
[394353918,1763483439512,-1609.94,0.000224,7]
[394353919,1763483439523,-34068.02,0.000224,2]
[394353920,1763483439533,-429.79690592,0.00022468,2]
[394353921,1763483439543,-1500.0,0.00022468,2]
[394353922,1763483439553,-1500.0,0.00022468,2]
[394353923,1763483439563,-602.96680173,0.000225,2]
[394353924,1763483439572,-1138.41644065,0.00022521,2]
[394353925,1763483439585,-992.17311306,0.00022521,2]
[394353926,1763483439595,-1000.0,0.00022521,2]
[394353927,1763483439604,-1000.0,0.00022521,2]
[394353928,1763483439613,-1000.0,0.00022521,2]
[394353929,1763483439623,-1000.0,0.00022521,2]
[394353930,1763483439635,-177.0,0.00022584,2]
[394353931,1763483439650,-192.54728717,0.00022616,2]
[394353932,1763483439660,-2000.0,0.00022616,2]
[394353933,1763483439670,-2000.0,0.00022616,2]
[394353934,1763483439765,-1831.65457704,0.00022616,2]
[394353935,1763483439775,-517.78655843,0.00022616,2]
[394353936,1763483439784,-500.0,0.00022616,2]
[394353937,1763483439793,-505.40395855,0.00022621,2]
[394353938,1763483439803,-948.9906155,0.00022621,2]
[394353939,1763483439813,-246.91632163,0.00022629,2]
[394353940,1763483439823,-486.6373754,0.00022634,2]
[394353941,1763483439835,-500.0,0.00022744,2]
[394353942,1763483439846,-250.0,0.00022744,2]
[394353943,1763483439855,-500.0,0.00022744,2]
[394353944,1763483439865,-500.0,0.00022744,2]
[394353945,1763483439876,-13373.03715135,0.00022744,2]
[394353946,1763483439887,-250.0,0.00022744,2]
[394353947,1763483439897,-500.0,0.00022744,2]
[394353948,1763483439908,-250.0,0.00022744,2]
[394353949,1763483439919,-417.62530717,0.00022744,2]
[394353950,1763483439931,-82.37469283,0.00022744,2]
[394353951,1763483439940,-250.0,0.00022744,2]
[394353952,1763483439950,-500.0,0.00022744,2]
[394353953,1763483439959,-250.0,0.00022744,2]
[394353954,1763483439969,-500.0,0.00022744,2]
[394353955,1763483439979,-250.0,0.00022744,2]
[394353956,1763483439989,-250.0,0.00022744,2]
[394353957,1763483439999,-250.0,0.00022744,2]
[394353958,1763483440009,-250.0,0.00022744,2]
[394353959,1763483440019,-250.0,0.00022744,2]
[394353960,1763483440028,-250.0,0.00022744,2]
[394353961,1763483440038,-249.999999,0.00022744,2]
[394353962,1763483440047,-1680.0,0.000228,2]
[394353963,1763483440057,-3553.20730563,0.00022871,2]
[394353964,1763483440067,-199.30436167,0.000229,2]
[394353965,1763483440076,-199.30436166,0.000229,2]
[394353966,1763483440088,-1853.40455288,0.00022904,2]
[394353967,1763483440099,-1219.62288868,0.00022904,2]
[394353968,1763483440109,-1500.0,0.00022916,2]
[394353969,1763483440118,-1000.0,0.00022921,2]
[394353970,1763483440129,-200.0,0.00022921,2]
[394353971,1763483440138,-1943.90049293,0.00023003,2]
[394353972,1763483440148,-2000.0,0.00023016,2]
[394353973,1763483440159,-187.1986547,0.00023016,2]
[394353974,1763483440169,-1001.81336112,0.00023068,2]
[394353975,1763483440178,-1482.98791595,0.00023068,2]
[394353976,1763483440188,-1011.56600794,0.00023068,2]
[394353977,1763483440198,-1853.40455288,0.00023082,2]
[394353978,1763483440210,-3553.20730563,0.00023158,2]
[394353979,1763483440219,-1057.56771256,0.00023164,2]